fUSD/lending_fUSD_20250530
["ID","MTS","AMOUNT","RATE_DAILY","PERIOD"]
[363160899,1748604666197,-569.25,0.00023013,2]
[363160900,1748604666206,-528.37,0.00023013,2]
[363160901,1748604666216,-420.0,0.00023013,2]
[363160902,1748604666225,-1602.73,0.00023013,2]
[363160903,1748604666235,-569.24,0.00023013,2]
[363160904,1748604666245,-457.6,0.00023013,2]
[363160905,1748604666255,-1032.32,0.00023013,2]
[363160906,1748604666265,-707.39,0.00023013,2]
[363160907,1748604666274,-910.96,0.00023013,2]
[363160908,1748604666283,-476.94,0.00023013,2]
[363160909,1748604666293,-1017.67,0.00023013,2]
[363160910,1748604666303,-709.34,0.00023013,2]
[363160911,1748604666313,-501.18,0.00023013,2]
[363160912,1748604666322,-677.94,0.00023013,2]
[363160913,1748604666332,-729.59,0.00023013,2]
[363160914,1748604666340,-1214.26,0.00023013,2]
[363160915,1748604666349,-646.84,0.00023013,2]
[363160916,1748604666359,-473.0,0.00023013,2]
[363160917,1748604666368,-633.82,0.00023013,2]
[363160918,1748604666377,-1308.02,0.00023013,2]
[363160919,1748604666387,-454.15,0.00023013,2]
[363160920,1748604666395,-420.0,0.00023013,2]
[363160921,1748604666405,-530.64,0.00023013,2]
[363160922,1748604666414,-520.26,0.00023013,2]
[363160923,1748604666423,-460.64,0.00023013,2]
[363160924,1748604666432,-609.32,0.00023013,2]
[363160925,1748604666442,-260.57635237,0.00023013,2]
[363160926,1748604666451,-420.0,0.00023013,2]
[363160927,1748604666460,-420.0,0.00023013,2]
[363160928,1748604666469,-1385.17,0.00023013,2]
[363160929,1748604666478,-611.87,0.00023013,2]
[363160930,1748604666488,-457.58,0.00023013,2]
[363160931,1748604666498,-498.5,0.00023013,2]
[363160932,1748604666508,-1068.05,0.00023013,2]
[363160933,1748604666518,-534.02,0.00023013,2]
[363160934,1748604666528,-420.0,0.00023013,2]
[363160935,1748604666538,-423.02,0.00023013,2]
[363160936,1748604666548,-1806.1,0.00023013,2]
[363160937,1748604666558,-955.38,0.00023013,2]
[363160938,1748604666567,-437.24,0.00023013,2]
[363160939,1748604666577,-420.0,0.00023013,2]
[363160940,1748604666586,-998.33,0.00023013,2]
[363160941,1748604666595,-1133.83,0.00023013,2]
[363160942,1748604666604,-768.21,0.00023013,2]
[363160943,1748604666613,-774.62,0.00023013,2]
[363160944,1748604666622,-420.0,0.00023013,2]
[363160945,1748604666631,-735.92,0.00023013,2]
[363160946,1748604666641,-1319.04,0.00023013,2]
[363160947,1748604666650,-448.54,0.00023013,2]
[363160948,1748604666660,-420.0,0.00023013,2]
[363160949,1748604666670,-622.98,0.00023013,2]
[363160950,1748604666679,-420.0,0.00023013,2]
[363160951,1748604666689,-1350.91,0.00023013,2]
[363160952,1748604666698,-420.0,0.00023013,2]
[363160953,1748604666708,-420.0,0.00023013,2]
[363160954,1748604666718,-519.24,0.00023013,2]
[363160955,1748604666728,-489.38,0.00023013,2]
[363160956,1748604666737,-420.0,0.00023013,2]
[363160957,1748604666747,-420.0,0.00023013,2]
[363160958,1748604666756,-613.75,0.00023013,2]
[363160959,1748604666766,-606.72,0.00023013,2]
[363160960,1748604666776,-420.0,0.00023013,2]
[363160961,1748604666786,-420.0,0.00023013,2]
[363160962,1748604666795,-476.62,0.00023013,2]
[363160963,1748604666803,-611.09,0.00023013,2]
[363160964,1748604666812,-466.39,0.00023013,2]
[363160965,1748604666822,-420.0,0.00023013,2]
[363160966,1748604666830,-420.0,0.00023013,2]
[363160967,1748604666839,-479.89,0.00023013,2]
[363160968,1748604666847,-777.7,0.00023013,2]
[363160969,1748604666856,-544.4,0.00023013,2]
[363160970,1748604666865,-420.0,0.00023013,2]
[363160971,1748604666879,-420.0,0.00023013,2]
[363160972,1748604666888,-1992.36,0.00023013,2]
[363160973,1748604666897,-449.12,0.00023013,2]
[363160974,1748604666907,-1690.08,0.00023013,2]
[363160975,1748604666917,-935.34,0.00023013,2]
[363160976,1748604666927,-474.41,0.00023013,2]
[363160977,1748604666937,-420.0,0.00023013,2]
[363160978,1748604666946,-420.0,0.00023013,2]
[363160979,1748604666956,-973.78,0.00023013,2]
[363160980,1748604666966,-420.0,0.00023013,2]
[363160981,1748604666975,-574.23,0.00023013,2]
[363160982,1748604666985,-1023.52,0.00023013,2]
[363160983,1748604666994,-577.88,0.00023013,2]
[363160984,1748604667004,-531.71,0.00023013,2]
[363160985,1748604667014,-1661.66,0.00023013,2]
[363160986,1748604667023,-420.0,0.00023013,2]
[363160987,1748604667033,-420.0,0.00023013,2]
[363160988,1748604667042,-420.0,0.00023013,2]
[363160989,1748604667052,-772.75,0.00023013,2]
[363160990,1748604667061,-420.0,0.00023013,2]
[363160991,1748604667071,-605.59,0.00023013,2]
[363160992,1748604667080,-420.0,0.00023013,2]
[363160993,1748604667089,-420.0,0.00023013,2]
[363160994,1748604667097,-588.38,0.00023013,2]
[363160995,1748604667106,-578.91,0.00023013,2]
[363160996,1748604667115,-420.0,0.00023013,2]
[363160997,1748604667127,-606.64,0.00023013,2]
[363160998,1748604667137,-443.15,0.00023013,2]
[363160999,1748604667147,-420.0,0.00023013,2]
[363161000,1748604667156,-1125.77,0.00023013,2]
[363161001,1748604667166,-420.0,0.00023013,2]
[363161002,1748604667175,-420.0,0.00023013,2]
[363161003,1748604667186,-938.03,0.00023013,2]
[363161004,1748604667196,-931.36,0.00023013,2]
[363161005,1748604667206,-527.00473185,0.00023013,2]
[363161006,1748604667216,-420.0,0.00023013,2]
[363161007,1748604667225,-1301.2,0.00023013,2]
[363161008,1748604667235,-420.0,0.00023013,2]
[363161009,1748604667452,-420.0,0.00023013,2]
[363161010,1748604667462,-775.29,0.00023013,2]
[363161011,1748604667473,-420.0,0.00023013,2]
[363161012,1748604667483,-420.0,0.00023013,2]
[363161013,1748604667493,-420.0,0.00023013,2]
[363161014,1748604667503,-575.37,0.00023013,2]
[363161015,1748604667513,-420.0,0.00023013,2]
[363161016,1748604667523,-483.2,0.00023013,2]
[363161017,1748604667534,-534.46,0.00023013,2]
[363161018,1748604667544,-420.0,0.00023013,2]
[363161019,1748604667554,-795.5,0.00023013,2]
[363161020,1748604667563,-487.54,0.00023013,2]
[363161021,1748604667572,-722.47,0.00023013,2]
[363161022,1748604667582,-420.0,0.00023013,2]
[363161023,1748604667591,-423.44,0.00023013,2]
[363161024,1748604667600,-420.0,0.00023013,2]
[363161025,1748604667609,-674.84,0.00023013,2]
[363161026,1748604667618,-1084.93,0.00023013,2]
[363161027,1748604667628,-956.78,0.00023013,2]
[363161028,1748604667637,-1747.0,0.00023013,2]
[363161029,1748604667647,-523.54,0.00023013,2]
[363161030,1748604667656,-499.91,0.00023013,2]
[363161031,1748604667666,-903.59,0.00023013,2]
[363161032,1748604667676,-865.58,0.00023013,2]
[363161033,1748604667686,-900.74,0.00023013,2]
[363161034,1748604667695,-420.0,0.00023013,2]
[363161035,1748604667704,-1372.63,0.00023013,2]
[363161036,1748604667713,-588.22,0.00023013,2]
[363161037,1748604667723,-1375.2,0.00023013,2]
[363161038,1748604667732,-429.11,0.00023013,2]
[363161039,1748604667741,-505.7532009,0.00023013,2]
[363161040,1748604667751,-770.98,0.00023013,2]
[363161041,1748604667759,-420.0,0.00023013,2]
[363161042,1748604667772,-768.17,0.00023013,2]
[363161043,1748604667782,-517.47,0.00023013,2]
[363161044,1748604667790,-420.0,0.00023013,2]
[363161045,1748604667800,-623.0,0.00023013,2]
[363161046,1748604667809,-793.05,0.00023013,2]
[363161047,1748604667821,-1241.06,0.00023013,2]
[363161048,1748604667829,-765.2,0.00023013,2]
[363161049,1748604667839,-420.0,0.00023013,2]
[363161050,1748604667848,-421.91,0.00023013,2]
[363161051,1748604667857,-421.93,0.00023013,2]
[363161052,1748604667865,-485.75,0.00023013,2]
[363161053,1748604667877,-420.0,0.00023013,2]
[363161054,1748604667886,-420.0,0.00023013,2]
[363161055,1748604667895,-283.56205,0.00023013,7]
[363161056,1748604667903,-491.63,0.00023013,2]
[363161057,1748604667913,-502.61,0.00023013,2]
[363161058,1748604667921,-283.56205,0.00023013,7]
[363161059,1748604667930,-430.15,0.00023013,2]
[363161060,1748604667939,-9469.1,0.00023013,2]
[363161061,1748604667947,-10073.27,0.00023013,2]
[363161062,1748604667958,-742.8,0.00023013,2]
[363161063,1748604667968,-420.0,0.00023013,2]
[363161064,1748604667977,-2689.83,0.00023013,2]
[363161065,1748604667986,-1981.59,0.00023013,2]
[363161066,1748604667995,-607.85,0.00023013,2]
[363161067,1748604668002,-564.47,0.00023013,2]
[363161068,1748604668011,-1369.33,0.00023013,2]
[363161069,1748604668019,-576.41,0.00023013,2]
[363161070,1748604668025,-12307.47,0.00023013,2]
[363161071,1748604668033,-1369.38,0.00023013,2]
[363161072,1748604668042,-863.99,0.00023013,2]
[363161073,1748604668051,-1245.87,0.00023013,2]
[363161074,1748604668058,-5194.13,0.00023013,2]
[363161075,1748604668066,-420.0,0.00023013,2]
[363161076,1748604668075,-880.77,0.00023013,2]
[363161077,1748604668085,-563.44,0.00023013,2]
[363161078,1748604668095,-2466.96,0.00023013,2]
[363161079,1748604668105,-631.65,0.00023013,2]
[363161080,1748604668115,-420.0,0.00023013,2]
[363161081,1748604668127,-420.0,0.00023013,2]
[363161082,1748604668137,-659.94,0.00023013,2]
[363161083,1748604668147,-816.72,0.00023013,2]
[363161084,1748604668157,-420.0,0.00023013,2]
[363161085,1748604668166,-2995.72,0.00023013,2]
[363161086,1748604668176,-598.75,0.00023013,2]
[363161087,1748604668185,-2447.94,0.00023013,2]
[363161088,1748604668196,-2947.99,0.00023013,2]
[363161089,1748604668207,-420.0,0.00023013,2]
[363161090,1748604668217,-151.0,0.00023013,7]
[363161091,1748604668430,-1153.83,0.00023013,2]
[363161092,1748604668440,-3076.84,0.00023013,2]
[363161093,1748604668449,-769.26,0.00023013,2]
[363161094,1748604668458,-924.16,0.00023013,2]
[363161095,1748604668467,-644.07,0.00023013,2]
[363161096,1748604668476,-420.0,0.00023013,2]
[363161097,1748604668485,-1310.77,0.00023013,2]
[363161098,1748604668494,-1040.66,0.00023013,2]
[363161099,1748604668503,-520.85,0.00023013,2]
[363161100,1748604668511,-1315.08,0.00023013,2]
[363161101,1748604668520,-420.0,0.00023013,2]
[363161102,1748604668529,-420.0,0.00023013,2]
[363161103,1748604668538,-420.0,0.00023013,2]
[363161104,1748604668547,-1506.01,0.00023013,2]
[363161105,1748604668556,-1515.01,0.00023013,2]
[363161106,1748604668565,-420.0,0.00023013,2]
[363161107,1748604668574,-1337.36,0.00023013,2]
[363161108,1748604668583,-3730.71,0.00023013,2]
[363161109,1748604668591,-425.25,0.00023013,2]
[363161110,1748604668600,-1314.08,0.00023013,2]
[363161111,1748604668609,-759.43,0.00023013,2]
[363161112,1748604668618,-909.46,0.00023013,2]
[363161113,1748604668630,-420.0,0.00023013,2]
[363161114,1748604668639,-673.25,0.00023013,2]
[363161115,1748604668649,-612.32,0.00023013,2]
[363161116,1748604668657,-1256.48,0.00023013,2]
[363161117,1748604668666,-2157.82,0.00023013,2]
[363161118,1748604668675,-1075.01,0.00023013,2]
[363161119,1748604668684,-1309.63,0.00023013,2]
[363161120,1748604668694,-1218.05,0.00023013,2]
[363161121,1748604668703,-915.55,0.00023013,2]
[363161122,1748604668712,-2231.36,0.00023013,2]
[363161123,1748604668721,-420.0,0.00023013,2]
[363161124,1748604668731,-420.0,0.00023013,2]
[363161125,1748604668740,-420.0,0.00023013,2]
[363161126,1748604668749,-2569.35,0.00023013,2]
[363161127,1748604668759,-6828.35,0.00023013,2]
[363161128,1748604668768,-1631.2,0.00023013,2]
[363161129,1748604668778,-611.68,0.00023013,2]
[363161130,1748604668787,-3976.57,0.00023013,2]
[363161131,1748604668796,-555.53,0.00023013,2]
[363161132,1748604668806,-3327.44,0.00023013,2]
[363161133,1748604668815,-1192.67,0.00023013,2]
[363161134,1748604668824,-420.0,0.00023013,2]
[363161135,1748604668834,-828.67,0.00023013,2]
[363161136,1748604668842,-3739.43,0.00023013,2]
[363161137,1748604668850,-420.0,0.00023013,2]
[363161138,1748604668859,-772.93,0.00023013,2]
[363161139,1748604668868,-2900.14,0.00023013,2]
[363161140,1748604668882,-3733.9,0.00023013,2]
[363161141,1748604668892,-1294.2,0.00023013,2]
[363161142,1748604668901,-1235.41,0.00023013,2]
[363161143,1748604668910,-5087.08,0.00023013,2]
[363161144,1748604668919,-1678.74,0.00023013,2]
[363161145,1748604668928,-582.4,0.00023013,2]
[363161146,1748604668937,-1439.67,0.00023013,2]
[363161147,1748604668947,-580.13,0.00023013,2]
[363161148,1748604668955,-6434.09,0.00023013,2]
[363161149,1748604668964,-759.66,0.00023013,2]
[363161150,1748604668974,-3623.76,0.00023013,2]
[363161151,1748604668983,-655.72,0.00023013,2]
[363161152,1748604668991,-642.76,0.00023013,2]
[363161153,1748604668999,-481.9,0.00023013,2]
[363161154,1748604669007,-447.8,0.00023013,2]
[363161155,1748604669017,-549.6,0.00023013,2]
[363161156,1748604669025,-3772.06,0.00023013,2]
[363161157,1748604669033,-2238.52,0.00023013,2]
[363161158,1748604669042,-656.16,0.00023013,2]
[363161159,1748604669050,-2601.73,0.00023013,2]
[363161160,1748604669060,-1054.88,0.00023013,2]
[363161161,1748604669068,-568.59,0.00023013,2]
[363161162,1748604669077,-1168.1,0.00023013,2]
[363161163,1748604669087,-1669.51,0.00023013,2]
[363161164,1748604669096,-581.44,0.00023013,2]
[363161165,1748604669105,-999.1,0.00023013,2]
[363161166,1748604669115,-420.0,0.00023013,2]
[363161167,1748604669125,-3565.93,0.00023013,2]
[363161168,1748604669134,-420.0,0.00023013,2]
[363161169,1748604669143,-644.61,0.00023013,2]
[363161170,1748604669154,-1021.83,0.00023013,2]
[363161171,1748604669164,-1573.75,0.00023013,2]
[363161172,1748604669173,-420.0,0.00023013,2]
[363161173,1748604669183,-1017.27,0.00023013,2]
[363161174,1748604669193,-700.99,0.00023013,2]
[363161175,1748604669203,-2494.53,0.00023013,2]
[363161176,1748604669213,-2312.08,0.00023013,2]
[363161177,1748604669224,-680.88,0.00023013,2]
[363161178,1748604669233,-1182.54,0.00023013,2]
[363161179,1748604669243,-906.67,0.00023013,2]
[363161180,1748604669252,-2382.61,0.00023013,2]
[363161181,1748604669261,-424.17440328,0.00023013,2]
[363161182,1748604669270,-8094.13,0.00023013,2]
[363161183,1748604669281,-516.49,0.00023013,2]
[363161184,1748604669291,-3383.87,0.00023013,2]
[363161185,1748604669301,-927.42,0.00023013,2]
[363161186,1748604669311,-4483.36,0.00023013,2]
[363161187,1748604669321,-515.51,0.00023013,2]
[363161188,1748604669331,-639.62,0.00023013,2]
[363161189,1748604669340,-2136.49,0.00023013,2]
[363161190,1748604669350,-420.0,0.00023013,2]
[363161191,1748604669360,-839.58,0.00023013,2]
[363161192,1748604669370,-979.47,0.00023013,2]
[363161193,1748604669380,-1149.03,0.00023013,2]
[363161194,1748604669390,-608.6,0.00023013,2]
[363161195,1748604669400,-939.09,0.00023013,2]
[363161196,1748604669410,-420.0,0.00023013,2]
[363161197,1748604669419,-1482.61,0.00023013,2]
[363161198,1748604669429,-1000.0,0.00023013,2]
[363161199,1748604669438,-1889.77,0.00023013,2]
[363161200,1748604669447,-346.82426588,0.00023013,2]
[363161201,1748604669457,-750.99,0.00023013,2]
[363161202,1748604669466,-960.87,0.00023013,2]
[363161203,1748604669476,-514.33,0.00023013,2]
[363161204,1748604669486,-431.76,0.00023013,2]
[363161205,1748604669495,-866.43,0.00023013,2]
[363161206,1748604669505,-1436.8,0.00023013,2]
[363161207,1748604669515,-493.51,0.00023013,2]
[363161208,1748604669525,-10057.47,0.00023013,2]
[363161209,1748604669534,-754.64,0.00023013,2]
[363161210,1748604669544,-420.0,0.00023013,2]
[363161211,1748604669554,-574.11,0.00023013,2]
[363161212,1748604669563,-420.0,0.00023013,2]
[363161213,1748604669573,-2523.48,0.00023013,2]
[363161214,1748604669582,-864.09,0.00023013,2]
[363161215,1748604669592,-420.0,0.00023013,2]
[363161216,1748604669602,-595.39,0.00023013,2]
[363161217,1748604669611,-2343.17,0.00023013,2]
[363161218,1748604669620,-1350.61,0.00023013,2]
[363161219,1748604669630,-1275.82,0.00023013,2]
[363161220,1748604669639,-10528.63,0.00023013,2]
[363161221,1748604669648,-785.99,0.00023013,2]
[363161222,1748604669657,-420.0,0.00023013,2]
[363161223,1748604669666,-746.67,0.00023013,2]
[363161224,1748604669675,-1173.07,0.00023013,2]
[363161225,1748604669684,-1197.98,0.00023013,2]
[363161226,1748604669694,-2200.67,0.00023013,2]
[363161227,1748604669703,-845.16,0.00023013,2]
[363161228,1748604669713,-795.97,0.00023013,2]
[363161229,1748604669723,-1300.55,0.00023013,2]
[363161230,1748604669733,-785.56,0.00023013,2]
[363161231,1748604669742,-6935.34,0.00023013,2]
[363161232,1748604669752,-420.0,0.00023013,2]
[363161233,1748604669761,-420.0,0.00023013,2]
[363161234,1748604669771,-420.0,0.00023013,2]
[363161235,1748604669780,-5936.94,0.00023013,2]
[363161236,1748604669789,-1476.35,0.00023013,2]
[363161237,1748604669798,-420.0,0.00023013,2]
[363161238,1748604669808,-123071.45,0.00023013,2]
[363161239,1748604669817,-4600.82,0.00023013,2]
[363161240,1748604669827,-574.07,0.00023013,2]
[363161241,1748604669836,-420.0,0.00023013,2]
[363161242,1748604669846,-1760.95,0.00023013,2]
[363161243,1748604669855,-632.71,0.00023013,2]
[363161244,1748604669865,-420.0,0.00023013,2]
[363161245,1748604669877,-792.56,0.00023013,2]
[363161246,1748604669886,-876.4,0.00023013,2]
[363161247,1748604669895,-891.11,0.00023013,2]
[363161248,1748604669905,-1035.56,0.00023013,2]
[363161249,1748604669914,-3046.1,0.00023013,2]
[363161250,1748604669925,-868.44,0.00023013,2]
[363161251,1748604669935,-781.24,0.00023013,2]
[363161252,1748604669944,-1178.18,0.00023013,2]
[363161253,1748604669955,-31646.38,0.00023013,2]
[363161254,1748604669965,-420.0,0.00023013,2]
[363161255,1748604669975,-420.0,0.00023013,2]
[363161256,1748604669984,-996.67,0.00023013,2]
[363161257,1748604669993,-1089.79,0.00023013,2]
[363161258,1748604670003,-420.0,0.00023013,2]
[363161259,1748604670013,-420.0,0.00023013,2]
[363161260,1748604670022,-875.57,0.00023013,2]
[363161261,1748604670031,-2264.05,0.00023013,2]
[363161262,1748604670040,-420.0,0.00023013,2]
[363161263,1748604670049,-1584.69,0.00023013,2]
[363161264,1748604670059,-951.88,0.00023013,2]
[363161265,1748604670067,-520.84,0.00023013,2]
[363161266,1748604670077,-1161.85,0.00023013,2]
[363161267,1748604670086,-423.91,0.00023013,2]
[363161268,1748604670095,-1451.673205,0.00023013,7]
[363161269,1748604670104,-1822.04,0.00023013,2]
[363161270,1748604670114,-420.0,0.00023013,2]
[363161271,1748604670125,-1451.673205,0.00023013,7]
[363161272,1748604670134,-654.3,0.00023013,2]
[363161273,1748604670144,-761.08,0.00023013,2]
[363161274,1748604670153,-420.0,0.00023013,2]
[363161275,1748604670163,-1824.55,0.00023013,2]
[363161276,1748604670173,-1143.21,0.00023013,2]
[363161277,1748604670183,-155.0,0.00023014,7]
[363161278,1748604670192,-620.93,0.00023014,2]
[363161279,1748604670201,-150.0,0.00023014,2]
[363161280,1748604670211,-1003.39494431,0.00023021,2]
[363161281,1748604670221,-1000.0,0.00023021,2]
[363161282,1748604670231,-1000.0,0.00023021,2]
[363161283,1748604670241,-1000.0,0.00023021,2]
[363161284,1748604670250,-698.72853232,0.00023021,2]
[363161285,1748604670259,-1000.0,0.00023021,2]
[363161286,1748604670268,-175.47148246,0.0002305,2]
[363161287,1748604670278,-160.2711382,0.00023073,2]
[363161288,1748604670288,-305.60291948,0.00023096,2]
[363161289,1748604670297,-2591.86224837,0.00023107,8]
[363161290,1748604670307,-524.38699901,0.00023187,2]
[363161291,1748604670316,-970.30026326,0.00023187,2]
[363161292,1748604670326,-11868.44749582,0.00023187,2]
[363161293,1748604670337,-40000.0,0.000232,4]
[363161294,1748604670347,-1415.43,0.000232,2]
[363161295,1748604670356,-949.9,0.000232,2]
[363161296,1748604670366,-2831.27,0.000232,2]
[363161297,1748604670376,-739.39,0.000232,2]
[363161298,1748604670385,-17027.97957943,0.000232,2]
[363161299,1748604670395,-500.0,0.000232,2]
[363161300,1748604670404,-500.0,0.000232,2]
[363161301,1748604670414,-500.0,0.000232,2]
[363161302,1748604670423,-500.0,0.000232,2]
[363161303,1748604670432,-500.0,0.000232,2]
[363161304,1748604670442,-500.0,0.000232,2]
[363161305,1748604670451,-500.0,0.000232,2]
[363161306,1748604670461,-500.0,0.000232,2]
[363161307,1748604670470,-500.0,0.000232,2]
[363161308,1748604670479,-500.0,0.000232,2]
[363161309,1748604670489,-500.0,0.000232,2]
[363161310,1748604670500,-500.0,0.000232,2]
[363161311,1748604670509,-500.0,0.000232,2]
[363161312,1748604670519,-500.0,0.000232,2]
[363161313,1748604670529,-500.0,0.000232,2]
[363161314,1748604670538,-500.0,0.000232,2]
[363161315,1748604670547,-962.0,0.000232,2]
[363161316,1748604670556,-2591.86224837,0.00023245,8]
[363161317,1748604670566,-450.83721612,0.00023247,2]
[363161318,1748604670575,-305.60291948,0.00023278,2]
[363161319,1748604670585,-2905.22954281,0.00023286,7]
[363161320,1748604670594,-803.13645452,0.00023286,2]
[363161321,1748604670604,-1573.44,0.00023286,2]
[363161322,1748604670613,-1391.71,0.00023286,2]
[363161323,1748604670622,-7429.13,0.00023286,2]
[363161324,1748604670632,-2921.34,0.00023286,2]
[363161325,1748604670641,-794.62,0.00023286,2]
[363161326,1748604670651,-3174.36,0.00023286,2]
[363161327,1748604670661,-6568.92,0.00023286,2]
[363161328,1748604670670,-1736.8,0.00023286,2]
[363161329,1748604670679,-1403.38,0.00023286,2]
[363161330,1748604670688,-670.15,0.00023286,2]
[363161331,1748604670696,-9101.03,0.00023286,2]
[363161332,1748604670706,-18152.04,0.00023286,2]
[363161333,1748604670714,-27441.36,0.00023286,2]
[363161334,1748604670722,-751.61,0.00023286,2]
[363161335,1748604670730,-8935.23,0.00023286,2]
[363161336,1748604670738,-2810.26,0.00023286,2]
[363161337,1748604670747,-1874.07,0.00023286,2]
[363161338,1748604670755,-1242.14,0.00023286,2]
[363161339,1748604670764,-1551.25,0.00023286,2]
[363161340,1748604670772,-672.13,0.00023286,2]
[363161341,1748604670781,-300.0,0.00023286,2]
[363161342,1748604670790,-300.0,0.00023286,2]
[363161343,1748604670799,-300.0,0.00023286,2]
[363161344,1748604670808,-300.0,0.00023286,2]
[363161345,1748604670818,-628.57,0.00023287,2]
[363161346,1748604670826,-420.0,0.00023287,2]
[363161347,1748604670835,-420.0,0.00023287,2]
[363161348,1748604670844,-420.0,0.00023287,2]
[363161349,1748604670853,-420.0,0.00023287,2]
[363161350,1748604670862,-420.0,0.00023287,2]
[363161351,1748604670874,-433.48,0.00023287,2]
[363161352,1748604670885,-420.0,0.00023287,2]
[363161353,1748604670894,-640.5,0.00023287,2]
[363161354,1748604670903,-420.0,0.00023287,2]
[363161355,1748604670912,-420.0,0.00023287,2]
[363161356,1748604670921,-539.07,0.00023287,2]
[363161357,1748604670930,-465.13,0.00023287,2]
[363161358,1748604670939,-420.0,0.00023287,2]
[363161359,1748604670948,-465.38,0.00023287,2]
[363161360,1748604670958,-420.0,0.00023287,2]
[363161361,1748604670967,-420.0,0.00023287,2]
[363161362,1748604670976,-250.0,0.00023287,2]
[363161363,1748604670984,-420.0,0.00023287,2]
[363161364,1748604670993,-420.0,0.00023287,2]
[363161365,1748604671002,-420.0,0.00023287,2]
[363161366,1748604671011,-420.0,0.00023287,2]
[363161367,1748604671020,-468.76,0.00023287,2]
[363161368,1748604671029,-420.0,0.00023287,2]
[363161369,1748604671038,-172.83704206,0.00023287,2]
[363161370,1748604671047,-420.0,0.00023287,2]
[363161371,1748604671056,-420.0,0.00023287,2]
[363161372,1748604671066,-420.0,0.00023287,2]
[363161373,1748604671075,-420.0,0.00023287,2]
[363161374,1748604671084,-420.0,0.00023287,2]
[363161375,1748604671094,-420.0,0.00023287,2]
[363161376,1748604671103,-420.0,0.00023287,2]
[363161377,1748604671113,-420.0,0.00023287,2]
[363161378,1748604671122,-452.19,0.00023287,2]
[363161379,1748604671133,-420.0,0.00023287,2]
[363161380,1748604671142,-420.0,0.00023287,2]
[363161381,1748604671151,-420.0,0.00023287,2]
[363161382,1748604671160,-645.55,0.00023287,2]
[363161383,1748604671169,-420.0,0.00023287,2]
[363161384,1748604671178,-543.23335428,0.00023287,2]
[363161385,1748604671187,-420.0,0.00023287,2]
[363161386,1748604671197,-420.98,0.00023287,2]
[363161387,1748604671206,-420.0,0.00023287,2]
[363161388,1748604671214,-420.0,0.00023287,2]
[363161389,1748604671223,-420.0,0.00023287,2]
[363161390,1748604671232,-420.0,0.00023287,2]
[363161391,1748604671241,-441.38,0.00023287,2]
[363161392,1748604671250,-420.0,0.00023287,2]
[363161393,1748604671259,-552.87,0.00023287,2]
[363161394,1748604671268,-355.26520735,0.00023287,2]
[363161395,1748604671278,-420.0,0.00023287,2]
[363161396,1748604671287,-420.0,0.00023287,2]
[363161397,1748604671297,-480.01,0.00023287,2]
[363161398,1748604671306,-420.0,0.00023287,2]